fUSD/lending_fUSD_20250311
["ID","MTS","AMOUNT","RATE_DAILY","PERIOD"]
[355908607,1741710648825,-500.0,8.989e-05,2]
[355908608,1741710648835,-500.0,8.989e-05,2]
[355908609,1741710648845,-500.0,8.989e-05,2]
[355908610,1741710648854,-500.0,8.989e-05,2]
[355908611,1741710648864,-848.0,8.989e-05,2]
[355908612,1741710648873,-500.0,8.989e-05,2]
[355908613,1741710648883,-500.0,8.989e-05,2]
[355908614,1741710648892,-500.0,8.989e-05,2]
[355908615,1741710648902,-522.2082378,8.989e-05,2]
[355908616,1741710648911,-1281.81,8.989e-05,2]
[355908617,1741710648920,-1756.77,8.989e-05,2]
[355908618,1741710648931,-500.0,8.989e-05,2]
[355908619,1741710648940,-500.0,8.989e-05,2]
[355908620,1741710648949,-1969.53,8.989e-05,2]
[355908621,1741710648958,-500.0,8.989e-05,2]
[355908622,1741710648968,-500.0,8.989e-05,2]
[355908623,1741710648978,-1966.27,8.989e-05,2]
[355908624,1741710648988,-500.0,8.989e-05,2]
[355908625,1741710648998,-500.0,8.989e-05,2]
[355908626,1741710649008,-500.0,8.989e-05,2]
[355908627,1741710649017,-500.0,8.989e-05,2]
[355908628,1741710649027,-499.76501735,8.989e-05,2]
[355908629,1741710650235,-1172.82805513,8.885e-05,2]
[355908630,1741710650247,-532.38180266,8.885e-05,2]
[355908631,1741710650260,-389.88014221,8.885e-05,2]
[355908632,1741710650270,-894.44,8.887e-05,2]
[355908633,1741710650280,-0.23498265,8.989e-05,2]
[355908634,1741710650290,-659.29,8.989e-05,2]
[355908635,1741710650300,-500.0,8.989e-05,2]
[355908636,1741710650310,-629.62,8.989e-05,2]
[355908637,1741710650321,-673.69,8.989e-05,2]
[355908638,1741710650331,-249.84487457,8.989e-05,2]
[355908639,1741710650343,-250.15512543,8.989e-05,2]
[355908640,1741710650353,-500.0,8.989e-05,2]
[355908641,1741710650363,-500.0,8.989e-05,2]
[355908642,1741710650372,-842.06,8.989e-05,2]
[355908643,1741710650383,-500.0,8.989e-05,2]
[355908644,1741710650393,-500.0,8.989e-05,2]
[355908645,1741710650404,-1183.0,8.989e-05,2]
[355908646,1741710650414,-500.0,8.989e-05,2]
[355908647,1741710650424,-500.0,8.989e-05,2]
[355908648,1741710650436,-500.0,8.989e-05,2]
[355908649,1741710650446,-545.28,8.989e-05,2]
[355908650,1741710650456,-500.0,8.989e-05,2]
[355908651,1741710650466,-646.37,8.989e-05,2]
[355908652,1741710650478,-2049.44,8.989e-05,2]
[355908653,1741710650489,-500.0,8.989e-05,2]
[355908654,1741710650500,-804.39,8.989e-05,2]
[355908655,1741710650510,-500.0,8.989e-05,2]
[355908656,1741710650521,-1657.77,8.989e-05,2]
[355908657,1741710650531,-500.0,8.989e-05,2]
[355908658,1741710650541,-565.58,8.989e-05,2]
[355908659,1741710650550,-500.0,8.989e-05,2]
[355908660,1741710650560,-500.0,8.989e-05,2]
[355908661,1741710650570,-500.0,8.989e-05,2]
[355908662,1741710650580,-500.0,8.989e-05,2]
[355908663,1741710650594,-500.0,8.989e-05,2]
[355908664,1741710650604,-520.29070174,8.989e-05,2]
[355908665,1741710650614,-500.0,8.989e-05,2]
[355908666,1741710650624,-500.0,8.989e-05,2]
[355908667,1741710650634,-500.0,8.989e-05,2]
[355908668,1741710650645,-2104.98,8.989e-05,2]
[355908669,1741710650655,-500.0,8.989e-05,2]
[355908670,1741710650665,-500.0,8.989e-05,2]
[355908671,1741710650675,-500.0,8.989e-05,2]
[355908672,1741710650688,-500.0,8.989e-05,2]
[355908673,1741710650698,-564.69,8.989e-05,2]
[355908674,1741710650708,-971.49,8.989e-05,2]
[355908675,1741710650718,-500.0,8.989e-05,2]
[355908676,1741710650728,-500.0,8.989e-05,2]
[355908677,1741710650738,-896.36,8.989e-05,2]
[355908678,1741710650748,-716.95,8.989e-05,5]
[355908679,1741710650759,-500.0,8.989e-05,2]
[355908680,1741710650769,-1316.92,8.989e-05,2]
[355908681,1741710650779,-500.0,8.989e-05,2]
[355908682,1741710650790,-500.0,8.989e-05,2]
[355908683,1741710650799,-467.21940366,8.989e-05,2]
[355908684,1741710650810,-527.35653279,8.989e-05,2]
[355908685,1741710650820,-2073.02,8.989e-05,2]
[355908686,1741710650830,-752.64,8.989e-05,2]
[355908687,1741710650842,-500.0,8.989e-05,2]
[355908688,1741710650853,-500.0,8.989e-05,2]
[355908689,1741710650863,-534.1,8.989e-05,2]
[355908690,1741710650873,-1078.09,8.989e-05,2]
[355908691,1741710650883,-839.97,8.989e-05,2]
[355908692,1741710650894,-500.0,8.989e-05,2]
[355908693,1741710650909,-500.0,8.989e-05,2]
[355908694,1741710650920,-500.0,8.989e-05,2]
[355908695,1741710650930,-500.0,8.989e-05,2]
[355908696,1741710650940,-1055.97,8.989e-05,2]
[355908697,1741710650950,-500.0,8.989e-05,2]
[355908698,1741710650961,-500.0,8.989e-05,2]
[355908699,1741710650971,-500.0,8.989e-05,2]
[355908700,1741710650982,-500.0,8.989e-05,2]
[355908701,1741710650992,-500.0,8.989e-05,2]
[355908702,1741710651002,-567.6,8.989e-05,2]
[355908703,1741710651012,-663.28,8.989e-05,2]
[355908704,1741710651023,-500.0,8.989e-05,2]
[355908705,1741710651033,-500.0,8.989e-05,2]
[355908706,1741710651043,-2260.99,8.989e-05,2]
[355908707,1741710651052,-500.0,8.989e-05,2]
[355908708,1741710651062,-500.0,8.989e-05,2]
[355908709,1741710651072,-500.0,8.989e-05,2]
[355908710,1741710651083,-500.0,8.989e-05,2]
[355908711,1741710651098,-500.0,8.989e-05,2]
[355908712,1741710651113,-500.0,8.989e-05,2]
[355908713,1741710651124,-1363.28,8.989e-05,2]
[355908714,1741710651135,-500.0,8.989e-05,2]
[355908715,1741710651145,-500.0,8.989e-05,2]
[355908716,1741710651155,-500.0,8.989e-05,2]
[355908717,1741710651167,-500.0,8.989e-05,2]
[355908718,1741710651178,-500.0,8.989e-05,2]
[355908719,1741710651189,-500.0,8.989e-05,2]
[355908720,1741710651200,-500.0,8.989e-05,2]
[355908721,1741710651211,-500.0,8.989e-05,2]
[355908722,1741710651221,-2174.54,8.989e-05,2]
[355908723,1741710651231,-615.67,8.989e-05,2]
[355908724,1741710651241,-500.0,8.989e-05,2]
[355908725,1741710651251,-533.46861005,8.989e-05,2]
[355908726,1741710651262,-500.0,8.989e-05,2]
[355908727,1741710651272,-500.0,8.989e-05,2]
[355908728,1741710651282,-500.0,8.989e-05,2]
[355908729,1741710651292,-500.0,8.989e-05,2]
[355908730,1741710651303,-500.0,8.989e-05,2]
[355908731,1741710651312,-547.17,8.989e-05,2]
[355908732,1741710651323,-674.66,8.989e-05,2]
[355908733,1741710651334,-500.69896422,8.989e-05,2]
[355908734,1741710651344,-500.0,8.989e-05,2]
[355908735,1741710651354,-500.0,8.989e-05,2]
[355908736,1741710651363,-1024.12,8.989e-05,2]
[355908737,1741710651374,-500.0,8.989e-05,2]
[355908738,1741710651384,-500.0,8.989e-05,2]
[355908739,1741710651393,-500.0,8.989e-05,2]
[355908740,1741710651403,-671.89,8.989e-05,2]
[355908741,1741710651413,-503.16,8.989e-05,2]
[355908742,1741710651423,-500.0,8.989e-05,2]
[355908743,1741710651433,-500.0,8.989e-05,2]
[355908744,1741710651442,-500.0,8.989e-05,2]
[355908745,1741710651452,-516.15,8.989e-05,2]
[355908746,1741710651461,-500.0,8.989e-05,2]
[355908747,1741710651470,-500.0,8.989e-05,2]
[355908748,1741710651481,-500.0,8.989e-05,2]
[355908749,1741710651490,-434.92500565,8.989e-05,2]
[355908750,1741710651500,-500.0,8.989e-05,2]
[355908751,1741710651511,-500.0,8.989e-05,2]
[355908752,1741710651521,-500.0,8.989e-05,2]
[355908753,1741710651531,-500.0,8.989e-05,2]
[355908754,1741710651541,-500.99,8.989e-05,2]
[355908755,1741710651552,-500.0,8.989e-05,2]
[355908756,1741710651562,-500.0,8.989e-05,2]
[355908757,1741710651572,-500.0,8.989e-05,2]
[355908758,1741710651582,-500.0,8.989e-05,2]
[355908759,1741710651592,-500.0,8.989e-05,2]
[355908760,1741710651602,-500.0,8.989e-05,2]
[355908761,1741710651612,-500.0,8.989e-05,2]
[355908762,1741710651621,-500.0,8.989e-05,2]
[355908763,1741710651631,-500.0,8.989e-05,2]
[355908764,1741710651641,-500.0,8.989e-05,2]
[355908765,1741710651650,-500.0,8.989e-05,2]
[355908766,1741710651878,-605.38209904,8.989e-05,2]
[355908767,1741710651900,-500.0,8.989e-05,2]
[355908768,1741710651910,-920.41,8.989e-05,2]
[355908769,1741710651920,-500.0,8.989e-05,2]
[355908770,1741710651930,-500.0,8.989e-05,2]
[355908771,1741710651944,-500.0,8.989e-05,2]
[355908772,1741710651954,-777.69,8.989e-05,2]
[355908773,1741710651965,-2539.4,8.989e-05,2]
[355908774,1741710651975,-500.0,8.989e-05,2]
[355908775,1741710651985,-500.0,8.989e-05,2]
[355908776,1741710651996,-1082.65,8.989e-05,2]
[355908777,1741710652006,-196.46839878,8.989e-05,2]
[355908778,1741710652802,-995.35160122,8.989e-05,2]
[355908779,1741710652812,-634.792499,8.989e-05,2]
[355908780,1741710652823,-500.0,8.989e-05,2]
[355908781,1741710652832,-500.0,8.989e-05,2]
[355908782,1741710652842,-2325.11,8.989e-05,2]
[355908783,1741710652851,-500.0,8.989e-05,2]
[355908784,1741710652861,-1023.02,8.989e-05,2]
[355908785,1741710652871,-713.65,8.989e-05,2]
[355908786,1741710652880,-656.53,8.989e-05,2]
[355908787,1741710652890,-556.6,8.989e-05,2]
[355908788,1741710652899,-151.0,8.989e-05,2]
[355908789,1741710652908,-2257.04,8.989e-05,2]
[355908790,1741710652917,-500.77047664,8.989e-05,2]
[355908791,1741710652927,-500.0,8.989e-05,2]
[355908792,1741710652938,-500.0,8.989e-05,2]
[355908793,1741710652948,-585.84,8.989e-05,2]
[355908794,1741710652958,-1599.54,8.989e-05,2]
[355908795,1741710652968,-151.0,8.989e-05,2]
[355908796,1741710652978,-500.0,8.989e-05,2]
[355908797,1741710652987,-500.0,8.989e-05,2]
[355908798,1741710652997,-2473.63,8.989e-05,2]
[355908799,1741710653006,-525.45,8.989e-05,2]
[355908800,1741710653016,-565.99,8.989e-05,2]
[355908801,1741710653026,-500.0,8.989e-05,2]
[355908802,1741710653035,-500.0,8.989e-05,2]
[355908803,1741710653045,-500.0,8.989e-05,2]
[355908804,1741710653054,-500.0,8.989e-05,2]
[355908805,1741710653064,-500.0,8.989e-05,2]
[355908806,1741710653073,-530.74604365,8.989e-05,2]
[355908807,1741710653083,-500.0,8.989e-05,2]
[355908808,1741710653097,-500.0,8.989e-05,2]
[355908809,1741710653106,-500.0,8.989e-05,2]
[355908810,1741710653115,-848.37,8.989e-05,2]
[355908811,1741710653124,-500.0,8.989e-05,2]
[355908812,1741710653136,-1073.9,8.989e-05,2]
[355908813,1741710653148,-157.999119,8.989e-05,2]
[355908814,1741710653158,-507.26337502,8.989e-05,2]
[355908815,1741710653168,-500.96683915,8.989e-05,2]
[355908816,1741710653181,-977.52,8.989e-05,2]
[355908817,1741710653196,-500.0,8.989e-05,2]
[355908818,1741710653205,-500.0,8.989e-05,2]
[355908819,1741710653216,-500.0,8.989e-05,2]
[355908820,1741710653225,-500.0,8.989e-05,2]
[355908821,1741710653235,-500.0,8.989e-05,2]
[355908822,1741710653245,-781.59,8.989e-05,2]
[355908823,1741710653254,-500.0,8.989e-05,2]
[355908824,1741710653263,-867.75,8.989e-05,2]
[355908825,1741710653273,-500.0,8.989e-05,2]
[355908826,1741710653282,-500.0,8.989e-05,2]
[355908827,1741710653291,-1250.99,8.989e-05,2]
[355908828,1741710653301,-500.0,8.989e-05,2]
[355908829,1741710653310,-500.0,8.989e-05,2]
[355908830,1741710653319,-500.0,8.989e-05,2]
[355908831,1741710653329,-501.28058608,8.989e-05,2]
[355908832,1741710653343,-1639.71,8.989e-05,2]
[355908833,1741710653352,-500.0,8.989e-05,2]
[355908834,1741710653361,-500.0,8.989e-05,2]
[355908835,1741710653371,-500.0,8.989e-05,2]
[355908836,1741710653381,-1035.18,8.989e-05,2]
[355908837,1741710653391,-500.0,8.989e-05,2]
[355908838,1741710653400,-500.0,8.989e-05,2]
[355908839,1741710653410,-651.25,8.989e-05,2]
[355908840,1741710653419,-500.0,8.989e-05,2]
[355908841,1741710653428,-500.0,8.989e-05,2]
[355908842,1741710653441,-738.69,8.989e-05,2]
[355908843,1741710653450,-1290.68,8.989e-05,2]
[355908844,1741710653460,-500.0,8.989e-05,2]
[355908845,1741710653704,-1487.83,8.989e-05,2]
[355908846,1741710653715,-151.0,8.989e-05,2]
[355908847,1741710653724,-151.0,8.989e-05,2]
[355908848,1741710653734,-500.0,8.989e-05,2]
[355908849,1741710653744,-1046.81,8.989e-05,2]
[355908850,1741710653753,-516.67265887,8.989e-05,2]
[355908851,1741710653763,-500.0,8.989e-05,2]
[355908852,1741710653773,-500.0,8.989e-05,2]
[355908853,1741710653782,-500.0,8.989e-05,2]
[355908854,1741710653792,-500.0,8.989e-05,2]
[355908855,1741710653802,-500.0,8.989e-05,2]
[355908856,1741710653812,-1179.21,8.989e-05,2]
[355908857,1741710653822,-648.84,8.989e-05,2]
[355908858,1741710653831,-500.0,8.989e-05,2]
[355908859,1741710653841,-150.0,8.989e-05,2]
[355908860,1741710653850,-500.0,8.989e-05,2]
[355908861,1741710653860,-500.0,8.989e-05,2]
[355908862,1741710653870,-500.0,8.989e-05,2]
[355908863,1741710653879,-5000.0,8.989e-05,2]
[355908864,1741710653889,-1388.86,8.989e-05,2]
[355908865,1741710653898,-593.46,8.989e-05,2]
[355908866,1741710653908,-610.45,8.989e-05,2]
[355908867,1741710653917,-1054.12,8.989e-05,2]
[355908868,1741710653926,-607.08,8.989e-05,2]
[355908869,1741710653938,-1361.35,8.989e-05,2]
[355908870,1741710653948,-500.0,8.989e-05,2]
[355908871,1741710653957,-635.73,8.989e-05,2]
[355908872,1741710653967,-500.0,8.989e-05,2]
[355908873,1741710653976,-500.0,8.989e-05,2]
[355908874,1741710653986,-505.72067414,8.989e-05,2]
[355908875,1741710653995,-500.0,8.989e-05,2]
[355908876,1741710654005,-500.0,8.989e-05,2]
[355908877,1741710654014,-500.0,8.989e-05,2]
[355908878,1741710654023,-500.0,8.989e-05,2]
[355908879,1741710654033,-151.0,8.989e-05,2]
[355908880,1741710654043,-992.73,8.989e-05,2]
[355908881,1741710654053,-151.0,8.989e-05,2]
[355908882,1741710654062,-610.2,8.989e-05,2]
[355908883,1741710654071,-878.33,8.989e-05,2]
[355908884,1741710654083,-1497.45,8.989e-05,2]
[355908885,1741710654094,-500.0,8.989e-05,2]
[355908886,1741710654105,-1017.06,8.989e-05,2]
[355908887,1741710654116,-500.0,8.989e-05,2]
[355908888,1741710654130,-500.0,8.989e-05,2]
[355908889,1741710654147,-500.0,8.989e-05,2]
[355908890,1741710654157,-500.0,8.989e-05,2]
[355908891,1741710654170,-500.0,8.989e-05,2]
[355908892,1741710654181,-1437.65,8.989e-05,2]
[355908893,1741710654193,-500.0,8.989e-05,2]
[355908894,1741710654203,-500.0,8.989e-05,2]
[355908895,1741710654213,-625.106669,8.989e-05,2]
[355908896,1741710654223,-625.106669,8.989e-05,2]
[355908897,1741710654232,-677.28,8.989e-05,2]
[355908898,1741710654241,-500.0,8.989e-05,2]
[355908899,1741710654257,-500.0,8.989e-05,2]
[355908900,1741710654268,-607.97,8.989e-05,2]
[355908901,1741710654278,-607.97,8.989e-05,2]
[355908902,1741710654288,-607.97,8.989e-05,2]
[355908903,1741710654298,-607.97,8.989e-05,2]
[355908904,1741710654313,-500.0,8.989e-05,2]
[355908905,1741710654326,-607.97,8.989e-05,2]
[355908906,1741710654339,-151.0,8.989e-05,2]
[355908907,1741710654349,-607.97,8.989e-05,2]
[355908908,1741710654358,-607.97,8.989e-05,2]
[355908909,1741710654368,-151.0,8.989e-05,2]
[355908910,1741710654378,-607.97,8.989e-05,2]
[355908911,1741710654388,-607.97,8.989e-05,2]
[355908912,1741710654397,-500.0,8.989e-05,2]
[355908913,1741710654406,-607.97,8.989e-05,2]
[355908914,1741710654416,-607.97,8.989e-05,2]
[355908915,1741710654426,-607.97,8.989e-05,2]
[355908916,1741710654436,-607.97,8.989e-05,2]
[355908917,1741710654446,-607.97,8.989e-05,2]
[355908918,1741710654455,-607.97,8.989e-05,2]
[355908919,1741710654465,-607.97,8.989e-05,2]
[355908920,1741710654474,-526.0,8.989e-05,2]
[355908921,1741710654483,-500.0,8.989e-05,2]
[355908922,1741710654492,-151.0,8.989e-05,2]
[355908923,1741710654503,-151.0,8.989e-05,2]
[355908924,1741710654512,-500.0,8.989e-05,2]
[355908925,1741710654521,-625.106669,8.989e-05,2]
[355908926,1741710654530,-500.0,8.989e-05,2]
[355908927,1741710654539,-625.106669,8.989e-05,2]
[355908928,1741710654548,-500.0,8.989e-05,2]
[355908929,1741710654557,-866.31,8.989e-05,2]
[355908930,1741710654566,-1712.9,8.989e-05,2]
[355908931,1741710654576,-500.0,8.989e-05,2]
[355908932,1741710654586,-500.0,8.989e-05,2]
[355908933,1741710654595,-500.0,8.989e-05,2]
[355908934,1741710654604,-500.0,8.989e-05,2]
[355908935,1741710654613,-500.0,8.989e-05,2]
[355908936,1741710654622,-500.0,8.989e-05,2]
[355908937,1741710654631,-500.0,8.989e-05,2]
[355908938,1741710654641,-2258.17,8.989e-05,2]
[355908939,1741710654650,-500.0,8.989e-05,2]
[355908940,1741710654659,-746.73723,8.989e-05,2]
[355908941,1741710654669,-746.73723,8.989e-05,2]
[355908942,1741710654678,-535.15,8.989e-05,2]
[355908943,1741710654689,-845.69,8.989e-05,2]
[355908944,1741710654698,-509.83786765,8.989e-05,2]
[355908945,1741710654707,-500.0,8.989e-05,2]
[355908946,1741710654717,-2235.92,8.989e-05,2]
[355908947,1741710654726,-746.73723,8.989e-05,2]
[355908948,1741710654735,-746.73723,8.989e-05,2]
[355908949,1741710654744,-2056.75,8.989e-05,2]
[355908950,1741710654753,-500.0,8.989e-05,2]
[355908951,1741710654764,-659.18,8.989e-05,2]
[355908952,1741710654773,-159.392417,8.989e-05,2]
[355908953,1741710654783,-159.392417,8.989e-05,2]
[355908954,1741710654793,-500.0,8.989e-05,2]
[355908955,1741710654802,-500.0,8.989e-05,2]
[355908956,1741710654819,-500.0,8.989e-05,2]
[355908957,1741710654838,-577.75160227,8.989e-05,2]
[355908958,1741710654857,-500.0,8.989e-05,2]
[355908959,1741710654877,-159.392417,8.989e-05,2]
[355908960,1741710654892,-159.392417,8.989e-05,2]
[355908961,1741710654911,-500.0,8.989e-05,2]
[355908962,1741710654930,-500.0,8.989e-05,2]
[355908963,1741710654949,-500.0,8.989e-05,2]
[355908964,1741710654968,-565.9180457,8.989e-05,2]
[355908965,1741710654986,-652.08,8.989e-05,2]
[355908966,1741710655005,-819.3,8.989e-05,2]
[355908967,1741710655020,-500.0,8.989e-05,2]
[355908968,1741710655039,-500.0,8.989e-05,2]
[355908969,1741710655053,-1417.04,8.989e-05,2]
[355908970,1741710655070,-500.0,8.989e-05,2]
[355908971,1741710655085,-506.85378362,8.989e-05,2]
[355908972,1741710655103,-151.0,8.989e-05,2]
[355908973,1741710655119,-151.0,8.989e-05,2]
[355908974,1741710655141,-151.0,8.989e-05,2]
[355908975,1741710655157,-631.71,8.989e-05,2]
[355908976,1741710655173,-151.0,8.989e-05,2]
[355908977,1741710655189,-500.0,8.989e-05,2]
[355908978,1741710655205,-500.0,8.989e-05,2]
[355908979,1741710655221,-1098.99,8.989e-05,2]
[355908980,1741710655236,-500.0,8.989e-05,2]
[355908981,1741710655251,-500.0,8.989e-05,2]
[355908982,1741710655266,-500.0,8.989e-05,2]
[355908983,1741710655281,-500.0,8.989e-05,2]
[355908984,1741710655296,-500.0,8.989e-05,2]
[355908985,1741710655312,-500.0,8.989e-05,2]
[355908986,1741710655328,-500.0,8.989e-05,2]
[355908987,1741710655343,-500.0,8.989e-05,2]
[355908988,1741710655359,-500.0,8.989e-05,2]
[355908989,1741710655375,-155.338541,8.989e-05,2]
[355908990,1741710655391,-155.338541,8.989e-05,2]
[355908991,1741710655406,-155.338541,8.989e-05,2]
[355908992,1741710655421,-500.0,8.989e-05,2]
[355908993,1741710655437,-155.338541,8.989e-05,2]
[355908994,1741710655452,-500.0,8.989e-05,2]
[355908995,1741710655467,-500.0,8.989e-05,2]
[355908996,1741710655483,-1479.54,8.989e-05,2]
[355908997,1741710655497,-353.03371518,8.989e-05,2]
[355908998,1741710655513,-755.0,8.989e-05,2]
[355908999,1741710655528,-151.0,8.989e-05,2]
[355909000,1741710655543,-151.0,8.989e-05,2]
[355909001,1741710655558,-500.0,8.989e-05,2]
[355909002,1741710655574,-500.0,8.989e-05,2]
[355909003,1741710655589,-1100.59,8.989e-05,2]
[355909004,1741710655605,-500.0,8.989e-05,2]
[355909005,1741710655621,-798.12,8.989e-05,2]
[355909006,1741710655636,-1001.22,8.989e-05,2]
[355909007,1741710655652,-500.0,8.989e-05,2]
[355909008,1741710655668,-500.0,8.989e-05,2]
[355909009,1741710655685,-500.0,8.989e-05,2]
[355909010,1741710655702,-500.0,8.989e-05,2]
[355909011,1741710655718,-1702.37,8.989e-05,2]
[355909012,1741710655735,-500.0,8.989e-05,2]
[355909013,1741710655753,-500.0,8.989e-05,2]
[355909014,1741710655770,-500.0,8.989e-05,2]
[355909015,1741710655785,-500.0,8.989e-05,2]
[355909016,1741710655799,-500.0,8.989e-05,2]
[355909017,1741710655815,-515.27,8.989e-05,2]
[355909018,1741710655830,-500.0,8.989e-05,2]
[355909019,1741710655845,-500.0,8.989e-05,2]
[355909020,1741710655860,-500.0,8.989e-05,2]
[355909021,1741710655877,-388.6413131,8.989e-05,2]
[355909022,1741710655892,-645.79,8.989e-05,2]
[355909023,1741710655909,-1445.81,8.989e-05,2]
[355909024,1741710655927,-1123.65,8.989e-05,2]
[355909025,1741710655946,-500.0,8.989e-05,2]
[355909026,1741710655962,-622.84,8.989e-05,2]
[355909027,1741710655978,-500.0,8.989e-05,2]
[355909028,1741710655994,-1541.77,8.989e-05,2]
[355909029,1741710656010,-500.0,8.989e-05,2]
[355909030,1741710656027,-802.52,8.989e-05,2]
[355909031,1741710656043,-500.0,8.989e-05,2]
[355909032,1741710656058,-500.0,8.989e-05,2]
[355909033,1741710656074,-1771.62,8.989e-05,2]
[355909034,1741710656089,-500.0,8.989e-05,2]
[355909035,1741710656107,-1511.71,8.989e-05,2]
[355909036,1741710656123,-500.0,8.989e-05,2]
[355909037,1741710656141,-1497.22,8.989e-05,2]
[355909038,1741710656158,-500.0,8.989e-05,2]
[355909039,1741710656176,-500.0,8.989e-05,2]
[355909040,1741710656194,-683.06,8.989e-05,2]
[355909041,1741710656212,-500.0,8.989e-05,2]
[355909042,1741710656228,-1470.11,8.989e-05,2]
[355909043,1741710656245,-1470.11,8.989e-05,2]
[355909044,1741710656261,-1470.11,8.989e-05,2]
[355909045,1741710656277,-1470.11,8.989e-05,2]
[355909046,1741710656294,-1470.11,8.989e-05,2]
[355909047,1741710656311,-1470.11,8.989e-05,2]
[355909048,1741710656327,-1470.11,8.989e-05,2]
[355909049,1741710656342,-1470.11,8.989e-05,2]
[355909050,1741710656358,-1470.11,8.989e-05,2]
[355909051,1741710656374,-1470.11,8.989e-05,2]
[355909052,1741710656390,-1470.11,8.989e-05,2]
[355909053,1741710656406,-1470.11,8.989e-05,2]
[355909054,1741710656422,-1470.11,8.989e-05,2]
[355909055,1741710656439,-500.0,8.989e-05,2]
[355909056,1741710656456,-1470.11,8.989e-05,2]
[355909057,1741710656471,-1470.11,8.989e-05,2]
[355909058,1741710656487,-1470.11,8.989e-05,2]
[355909059,1741710656504,-500.0,8.989e-05,2]
[355909060,1741710656518,-500.0,8.989e-05,2]
[355909061,1741710656528,-661.74,8.989e-05,2]
[355909062,1741710656538,-964.3,8.989e-05,2]
[355909063,1741710656547,-584.68,8.989e-05,2]
[355909064,1741710656557,-500.0,8.989e-05,2]
[355909065,1741710656566,-500.0,8.989e-05,2]
[355909066,1741710656575,-500.0,8.989e-05,2]
[355909067,1741710656858,-500.0,8.989e-05,2]
[355909068,1741710656889,-500.0,8.989e-05,2]
[355909069,1741710656914,-500.0,8.989e-05,2]
[355909070,1741710656924,-500.0,8.989e-05,2]
[355909071,1741710656936,-2277.26,8.989e-05,2]
[355909072,1741710656945,-530.07016886,8.989e-05,2]
[355909073,1741710656955,-506.76,8.989e-05,2]
[355909074,1741710656964,-500.0,8.989e-05,2]
[355909075,1741710656974,-500.0,8.989e-05,2]
[355909076,1741710656983,-500.0,8.989e-05,2]
[355909077,1741710656992,-1139.62,8.989e-05,2]
[355909078,1741710657002,-500.0,8.989e-05,2]
[355909079,1741710657011,-1500.0,8.989e-05,2]
[355909080,1741710657021,-197.617314,8.989e-05,2]
[355909081,1741710657030,-197.617314,8.989e-05,2]
[355909082,1741710657040,-197.617314,8.989e-05,2]
[355909083,1741710657049,-500.0,8.989e-05,2]
[355909084,1741710657059,-635.79,8.989e-05,2]
[355909085,1741710657069,-500.0,8.989e-05,2]
[355909086,1741710657079,-197.617314,8.989e-05,2]
[355909087,1741710657089,-197.617314,8.989e-05,2]
[355909088,1741710657099,-197.617314,8.989e-05,2]
[355909089,1741710657111,-1037.07,8.989e-05,2]
[355909090,1741710657120,-2626.59,8.989e-05,2]
[355909091,1741710657130,-500.0,8.989e-05,2]
[355909092,1741710657142,-714.81,8.989e-05,2]
[355909093,1741710657152,-500.0,8.989e-05,2]
[355909094,1741710657162,-500.0,8.989e-05,2]
[355909095,1741710657172,-500.0,8.989e-05,2]
[355909096,1741710657182,-1753.47,8.989e-05,2]
[355909097,1741710657194,-2488.01,8.989e-05,2]
[355909098,1741710657204,-500.0,8.989e-05,2]
[355909099,1741710657214,-500.0,8.989e-05,2]
[355909100,1741710657224,-500.0,8.989e-05,2]
[355909101,1741710657234,-500.0,8.989e-05,2]
[355909102,1741710657243,-500.0,8.989e-05,2]
[355909103,1741710657253,-500.0,8.989e-05,2]
[355909104,1741710657263,-500.0,8.989e-05,2]
[355909105,1741710657272,-500.0,8.989e-05,2]
[355909106,1741710657282,-500.0,8.989e-05,2]